[Event "Titled Tuesday Blitz December 27 Early 2022"]
[White "Guha, Eshan"]
[Black "Mortazavi, Ali"]
[WhiteFideId "30958628"]
[BlackFideId "401323"]
[WhiteElo "2071"]
[BlackElo "2333"]
[Result "0-1"]
[Round "04"]
[TimeControl "180+2"]
[Date "2022.12.27"]
[WhiteClock "0:00:05"]
[BlackClock "0:00:19"]

1. d4 {[%clk 0:03:00]}  Nf6 {[%clk 0:02:59]} 2. c4 {[%clk 0:03:01]}  g6 {[%clk 0:02:59]} 3. g3 {[%clk 0:03:01]}  Bg7 {[%clk 0:03:00]} 4. Bg2 {[%clk 0:03:02]}  O-O {[%clk 0:03:01]} 5. Nc3 {[%clk 0:03:02]}  d6 {[%clk 0:03:02]} 6. Nf3 {[%clk 0:03:03]}  Nbd7 {[%clk 0:03:03]} 7. O-O {[%clk 0:03:03]}  e5 {[%clk 0:03:04]} 8. e4 {[%clk 0:03:03]}  c6 {[%clk 0:03:04]} 9. h3 {[%clk 0:02:54]}  Qa5 {[%clk 0:03:04]} 10. Be3 {[%clk 0:02:50]}  Nb6 {[%clk 0:03:03]} 11. Qd3 {[%clk 0:02:45]}  exd4 {[%clk 0:03:02]} 12. Nxd4 {[%clk 0:02:46]}  Nfd7 {[%clk 0:03:03]} 13. b3 {[%clk 0:02:42]}  Qh5 {[%clk 0:02:55]} 14. Qd1 {[%clk 0:02:38]}  Qa5 {[%clk 0:02:27]} 15. Qd2 {[%clk 0:02:34]}  Ne5 {[%clk 0:02:27]} 16. Rac1 {[%clk 0:02:27]}  c5 {[%clk 0:02:20]} 17. Ndb5 {[%clk 0:01:01]}  Bxh3 {[%clk 0:02:19]} 18. Qxd6 {[%clk 0:00:25]}  Bxg2 {[%clk 0:01:53]} 19. Kxg2 {[%clk 0:00:26]}  Rad8 {[%clk 0:01:37]} 20. Qe7 {[%clk 0:00:21]}  a6 {[%clk 0:01:12]} 21. Nd6 {[%clk 0:00:18]}  Nc6 {[%clk 0:01:02]} 22. Nxb7 {[%clk 0:00:12]}  Qxc3 {[%clk 0:01:02]} 23. Qxf8+ {[%clk 0:00:11]}  Rxf8 {[%clk 0:01:00]} 24. Rxc3 {[%clk 0:00:11]}  Bxc3 {[%clk 0:00:58]} 25. Nxc5 {[%clk 0:00:11]}  a5 {[%clk 0:00:43]} 26. Nd3 {[%clk 0:00:11]}  Bd4 {[%clk 0:00:40]} 27. Bxd4 {[%clk 0:00:09]}  Nxd4 {[%clk 0:00:40]} 28. Rd1 {[%clk 0:00:09]}  Rc8 {[%clk 0:00:35]} 29. Ne5 {[%clk 0:00:08]}  Ne6 {[%clk 0:00:32]} 30. Ng4 {[%clk 0:00:08]}  Kg7 {[%clk 0:00:32]} 31. Ne3 {[%clk 0:00:08]}  a4 {[%clk 0:00:30]} 32. Nd5 {[%clk 0:00:08]}  Nd7 {[%clk 0:00:27]} 33. Rc1 {[%clk 0:00:07]}  axb3 {[%clk 0:00:28]} 34. axb3 {[%clk 0:00:08]}  Ndc5 {[%clk 0:00:28]} 35. b4 {[%clk 0:00:04]}  Nxe4 {[%clk 0:00:28]} 36. c5 {[%clk 0:00:05]}  h5 {[%clk 0:00:23]} 37. c6 {[%clk 0:00:04]}  Nd6 {[%clk 0:00:20]} 38. Ne7 {[%clk 0:00:03]}  Rc7 {[%clk 0:00:19]} 39. Nd5 {[%clk 0:00:03]}  Ra7 {[%clk 0:00:19]} 40. Nc3 {[%clk 0:00:01]}  Nd4 {[%clk 0:00:18]} 41. b5 {[%clk 0:00:01]}  N4xb5 {[%clk 0:00:18]} 42. Nxb5 {[%clk 0:00:02]}  Nxb5 {[%clk 0:00:19]} 43. Rb1 {[%clk 0:00:02]}  Nc7 {[%clk 0:00:16]} 44. Rb7 {[%clk 0:00:03]}  Rxb7 {[%clk 0:00:17]} 45. cxb7 {[%clk 0:00:04]}  Na6 {[%clk 0:00:18]} 46. Kf3 {[%clk 0:00:03]}  Kf6 {[%clk 0:00:18]} 47. g4 {[%clk 0:00:04]}  h4 {[%clk 0:00:18]} 48. Kg2 {[%clk 0:00:04]}  g5 {[%clk 0:00:18]} 49. Kh3 {[%clk 0:00:04]}  Ke6 {[%clk 0:00:18]} 50. f4 {[%clk 0:00:05]}  f6 {[%clk 0:00:19]} 51. fxg5 {[%clk 0:00:05]}  fxg5 {[%clk 0:00:19]} 0-1


[Site "https://www.chess.com"]

[Event "Titled Tuesday Blitz December 27 Early 2022"]
[White "Guliev, Logman"]
[Black "Khoroshev, Nikita"]
[WhiteFideId "13400061"]
[BlackFideId "14200287"]
[WhiteElo "2250"]
[BlackElo "2336"]
[Result "1-0"]
[Round "04"]
[TimeControl "180+2"]
[Date "2022.12.27"]
[WhiteClock "0:02:10"]
[BlackClock "0:02:19"]

1. e4 {[%clk 0:02:52]}  c5 {[%clk 0:02:55]} 2. Nf3 {[%clk 0:02:50]}  e6 {[%clk 0:02:55]} 3. d4 {[%clk 0:02:49]}  cxd4 {[%clk 0:02:55]} 4. Nxd4 {[%clk 0:02:49]}  Nf6 {[%clk 0:02:55]} 5. Bd3 {[%clk 0:02:49]}  Nc6 {[%clk 0:02:52]} 6. Nxc6 {[%clk 0:02:50]}  dxc6 {[%clk 0:02:52]} 7. O-O {[%clk 0:02:49]}  e5 {[%clk 0:02:49]} 8. Nd2 {[%clk 0:02:46]}  Bc5 {[%clk 0:02:41]} 9. Nc4 {[%clk 0:02:45]}  Qe7 {[%clk 0:02:40]} 10. Be3 {[%clk 0:02:43]}  O-O {[%clk 0:02:36]} 11. h3 {[%clk 0:02:39]}  Re8 {[%clk 0:02:31]} 12. Qf3 {[%clk 0:02:37]}  b5 {[%clk 0:02:22]} 13. Na5 {[%clk 0:02:22]}  Bb7 {[%clk 0:02:19]} 14. Bxc5 {[%clk 0:02:10]} 1-0


[Site "https://www.chess.com"]

[Event "Titled Tuesday Blitz December 27 Early 2022"]
[White "Hardaway, Brewington"]
[Black "Kamsky, Gata"]
[WhiteFideId "30941849"]
[BlackFideId "2000024"]
[WhiteElo "2363"]
[BlackElo "2665"]
[Result "0-1"]
[Round "04"]
[TimeControl "180+2"]
[Date "2022.12.27"]
[WhiteClock "0:00:03"]
[BlackClock "0:00:15"]

1. Nf3 {[%clk 0:03:00]}  Nf6 {[%clk 0:02:59]} 2. e3 {[%clk 0:02:59]}  d5 {[%clk 0:02:56]} 3. c4 {[%clk 0:02:59]}  c6 {[%clk 0:02:54]} 4. d4 {[%clk 0:02:59]}  g6 {[%clk 0:02:48]} 5. Nc3 {[%clk 0:02:58]}  Bg7 {[%clk 0:02:47]} 6. cxd5 {[%clk 0:02:55]}  cxd5 {[%clk 0:02:47]} 7. Bd3 {[%clk 0:02:54]}  O-O {[%clk 0:02:46]} 8. O-O {[%clk 0:02:55]}  Nc6 {[%clk 0:02:44]} 9. h3 {[%clk 0:02:52]}  e6 {[%clk 0:02:40]} 10. b3 {[%clk 0:02:50]}  Bd7 {[%clk 0:02:34]} 11. Ba3 {[%clk 0:02:46]}  Re8 {[%clk 0:02:34]} 12. Nb5 {[%clk 0:02:42]}  Bf8 {[%clk 0:02:31]} 13. Nd6 {[%clk 0:02:38]}  Bxd6 {[%clk 0:01:53]} 14. Bxd6 {[%clk 0:02:36]}  Qa5 {[%clk 0:01:44]} 15. Ne5 {[%clk 0:02:33]}  Rec8 {[%clk 0:01:29]} 16. Qf3 {[%clk 0:01:51]}  Qd8 {[%clk 0:01:26]} 17. Qf4 {[%clk 0:01:30]}  Be8 {[%clk 0:01:23]} 18. Nxc6 {[%clk 0:01:17]}  Rxc6 {[%clk 0:01:21]} 19. Bb4 {[%clk 0:01:15]}  a6 {[%clk 0:01:18]} 20. g4 {[%clk 0:00:59]}  Rac8 {[%clk 0:01:16]} 21. Kg2 {[%clk 0:00:57]}  a5 {[%clk 0:01:10]} 22. Bd2 {[%clk 0:00:53]}  Ne4 {[%clk 0:01:07]} 23. Bxe4 {[%clk 0:00:47]}  dxe4 {[%clk 0:01:06]} 24. Rac1 {[%clk 0:00:46]}  f6 {[%clk 0:00:58]} 25. Rxc6 {[%clk 0:00:46]}  Bxc6 {[%clk 0:00:56]} 26. Rc1 {[%clk 0:00:43]}  e5 {[%clk 0:00:54]} 27. Qh6 {[%clk 0:00:15]}  exd4 {[%clk 0:00:53]} 28. Rc4 {[%clk 0:00:16]}  dxe3 {[%clk 0:00:49]} 29. Bxe3 {[%clk 0:00:15]}  Qe7 {[%clk 0:00:47]} 30. Rc5 {[%clk 0:00:11]}  Ra8 {[%clk 0:00:45]} 31. a4 {[%clk 0:00:10]}  Qe6 {[%clk 0:00:42]} 32. Rc3 {[%clk 0:00:08]}  Rd8 {[%clk 0:00:41]} 33. Qf4 {[%clk 0:00:08]}  g5 {[%clk 0:00:38]} 34. Qc7 {[%clk 0:00:08]}  Ra8 {[%clk 0:00:35]} 35. Qb6 {[%clk 0:00:07]}  h5 {[%clk 0:00:34]} 36. gxh5 {[%clk 0:00:07]}  Kg7 {[%clk 0:00:33]} 37. Rc5 {[%clk 0:00:05]}  Kh6 {[%clk 0:00:25]} 38. h4 {[%clk 0:00:05]}  Qg4+ {[%clk 0:00:25]} 39. Kf1 {[%clk 0:00:05]}  Qxh4 {[%clk 0:00:23]} 40. Rxa5 {[%clk 0:00:06]}  Qh1+ {[%clk 0:00:22]} 41. Ke2 {[%clk 0:00:05]}  Qxh5+ {[%clk 0:00:22]} 42. Kd2 {[%clk 0:00:06]}  Rxa5 {[%clk 0:00:21]} 43. Qxa5 {[%clk 0:00:06]}  Qf7 {[%clk 0:00:21]} 44. Qb4 {[%clk 0:00:04]}  Qd5+ {[%clk 0:00:20]} 45. Bd4 {[%clk 0:00:04]}  Kg6 {[%clk 0:00:20]} 46. Kc3 {[%clk 0:00:04]}  Qf5 {[%clk 0:00:19]} 47. Qf8 {[%clk 0:00:04]}  Qe6 {[%clk 0:00:19]} 48. b4 {[%clk 0:00:03]}  Bxa4 {[%clk 0:00:18]} 49. Bc5 {[%clk 0:00:02]}  Bb5 {[%clk 0:00:17]} 50. Qb8 {[%clk 0:00:02]}  Qc4+ {[%clk 0:00:16]} 51. Kd2 {[%clk 0:00:02]}  Qd3+ {[%clk 0:00:16]} 52. Kc1 {[%clk 0:00:03]}  Qc3+ {[%clk 0:00:16]} 53. Kd1 {[%clk 0:00:03]}  Ba4+ {[%clk 0:00:15]} 54. Ke2 {[%clk 0:00:03]}  Qd3+ {[%clk 0:00:15]} 55. Ke1 {[%clk 0:00:03]}  Qd1# {[%clk 0:00:15]} 0-1


[Site "https://www.chess.com"]

[Event "Titled Tuesday Blitz December 27 Early 2022"]
[White "Hoffmann, Asa"]
[Black "Rosh Jain"]
[WhiteFideId "2001470"]
[BlackFideId "25789465"]
[WhiteElo "2185"]
[BlackElo "2248"]
[Result "0-1"]
[Round "04"]
[TimeControl "180+2"]
[Date "2022.12.27"]
[WhiteClock "0:00:20"]
[BlackClock "0:00:14"]

1. d4 {[%clk 0:02:57]}  Nf6 {[%clk 0:02:59]} 2. Bg5 {[%clk 0:02:53]}  Ne4 {[%clk 0:02:58]} 3. Bf4 {[%clk 0:02:51]}  d5 {[%clk 0:02:58]} 4. f3 {[%clk 0:02:51]}  Nf6 {[%clk 0:02:58]} 5. e4 {[%clk 0:02:50]}  dxe4 {[%clk 0:02:56]} 6. Nc3 {[%clk 0:02:50]}  e6 {[%clk 0:02:56]} 7. fxe4 {[%clk 0:02:49]}  Bb4 {[%clk 0:02:52]} 8. e5 {[%clk 0:02:49]}  Ne4 {[%clk 0:02:50]} 9. Qf3 {[%clk 0:02:46]}  Qxd4 {[%clk 0:02:33]} 10. Ne2 {[%clk 0:02:33]}  Qd5 {[%clk 0:02:15]} 11. Rd1 {[%clk 0:02:28]}  Qc6 {[%clk 0:02:09]} 12. Rd4 {[%clk 0:01:59]}  Nxc3 {[%clk 0:02:00]} 13. bxc3 {[%clk 0:01:54]}  Qxf3 {[%clk 0:01:57]} 14. gxf3 {[%clk 0:01:54]}  Bc5 {[%clk 0:01:57]} 15. Rc4 {[%clk 0:01:47]}  b6 {[%clk 0:01:57]} 16. Nd4 {[%clk 0:01:34]}  Bb7 {[%clk 0:01:47]} 17. Be2 {[%clk 0:01:28]}  Nc6 {[%clk 0:01:39]} 18. Nb5 {[%clk 0:01:24]}  O-O-O {[%clk 0:01:35]} 19. Bd3 {[%clk 0:01:11]}  Kb8 {[%clk 0:01:22]} 20. Ke2 {[%clk 0:01:06]}  Na5 {[%clk 0:01:02]} 21. Rxc5 {[%clk 0:01:03]}  bxc5 {[%clk 0:01:01]} 22. Na3 {[%clk 0:01:03]}  f6 {[%clk 0:00:54]} 23. Rb1 {[%clk 0:01:02]}  Ka8 {[%clk 0:00:52]} 24. Rb5 {[%clk 0:00:57]}  Nc6 {[%clk 0:00:50]} 25. Rxc5 {[%clk 0:00:57]}  fxe5 {[%clk 0:00:49]} 26. Bxe5 {[%clk 0:00:57]}  Nxe5 {[%clk 0:00:48]} 27. Rxe5 {[%clk 0:00:56]}  Rhf8 {[%clk 0:00:48]} 28. Re3 {[%clk 0:00:53]}  Rf7 {[%clk 0:00:48]} 29. Nc4 {[%clk 0:00:52]}  Rdf8 {[%clk 0:00:45]} 30. Ne5 {[%clk 0:00:52]}  Re7 {[%clk 0:00:45]} 31. c4 {[%clk 0:00:51]}  g6 {[%clk 0:00:44]} 32. h4 {[%clk 0:00:50]}  c5 {[%clk 0:00:41]} 33. Be4 {[%clk 0:00:44]}  Bxe4 {[%clk 0:00:39]} 34. fxe4 {[%clk 0:00:43]}  Rf4 {[%clk 0:00:34]} 35. h5 {[%clk 0:00:38]}  gxh5 {[%clk 0:00:33]} 36. Nd3 {[%clk 0:00:37]}  Rf6 {[%clk 0:00:23]} 37. Nxc5 {[%clk 0:00:34]}  Rc7 {[%clk 0:00:22]} 38. e5 {[%clk 0:00:30]}  Rg6 {[%clk 0:00:19]} 39. Nd3 {[%clk 0:00:29]}  Rxc4 {[%clk 0:00:18]} 40. Kd2 {[%clk 0:00:29]}  Rg2+ {[%clk 0:00:17]} 41. Kc1 {[%clk 0:00:28]}  Rcxc2+ {[%clk 0:00:17]} 42. Kb1 {[%clk 0:00:27]}  Rxa2 {[%clk 0:00:17]} 43. Rh3 {[%clk 0:00:22]}  Rae2 {[%clk 0:00:15]} 44. Nc1 {[%clk 0:00:21]}  Re1 {[%clk 0:00:13]} 45. Rc3 {[%clk 0:00:21]}  Rgg1 {[%clk 0:00:11]} 46. Kb2 {[%clk 0:00:20]}  Rxc1 {[%clk 0:00:11]} 47. Rxc1 {[%clk 0:00:20]}  Rxc1 {[%clk 0:00:12]} 48. Kxc1 {[%clk 0:00:20]}  h4 {[%clk 0:00:13]} 49. Kd2 {[%clk 0:00:20]}  h3 {[%clk 0:00:13]} 50. Ke3 {[%clk 0:00:20]}  h2 {[%clk 0:00:14]} 0-1


[Site "https://www.chess.com"]

[Event "Titled Tuesday Blitz December 27 Early 2022"]
[White "Iljin, Timofey"]
[Black "Vasques, Antonio Pedro Freixial"]
[WhiteFideId "14110180"]
[BlackFideId "1908332"]
[WhiteElo "2329"]
[BlackElo "2214"]
[Result "1-0"]
[Round "04"]
[TimeControl "180+2"]
[Date "2022.12.27"]
[WhiteClock "0:01:49"]
[BlackClock "0:00:34"]

1. e4 {[%clk 0:03:00]}  c5 {[%clk 0:03:00]} 2. c3 {[%clk 0:02:59]}  Nf6 {[%clk 0:02:59]} 3. e5 {[%clk 0:02:59]}  Nd5 {[%clk 0:03:00]} 4. d4 {[%clk 0:03:00]}  cxd4 {[%clk 0:02:58]} 5. cxd4 {[%clk 0:03:01]}  d6 {[%clk 0:02:56]} 6. Nf3 {[%clk 0:03:02]}  e6 {[%clk 0:02:53]} 7. Bc4 {[%clk 0:03:01]}  Nc6 {[%clk 0:02:49]} 8. O-O {[%clk 0:03:00]}  Be7 {[%clk 0:02:44]} 9. exd6 {[%clk 0:02:59]}  Qxd6 {[%clk 0:02:40]} 10. Nc3 {[%clk 0:02:58]}  Nxc3 {[%clk 0:02:32]} 11. bxc3 {[%clk 0:02:59]}  O-O {[%clk 0:02:32]} 12. Bd3 {[%clk 0:02:58]}  h6 {[%clk 0:02:26]} 13. Bc2 {[%clk 0:02:58]}  Bd7 {[%clk 0:02:24]} 14. Qd3 {[%clk 0:02:58]}  f5 {[%clk 0:02:24]} 15. Re1 {[%clk 0:02:57]}  Bf6 {[%clk 0:02:24]} 16. a4 {[%clk 0:02:56]}  Qc7 {[%clk 0:02:20]} 17. Bb3 {[%clk 0:02:54]}  Rfe8 {[%clk 0:02:21]} 18. Qxf5 {[%clk 0:02:53]}  Na5 {[%clk 0:02:05]} 19. Bxe6+ {[%clk 0:02:44]}  Bxe6 {[%clk 0:02:06]} 20. Rxe6 {[%clk 0:02:44]}  Qxc3 {[%clk 0:02:06]} 21. Rb1 {[%clk 0:02:42]}  Bxd4 {[%clk 0:01:45]} 22. Bd2 {[%clk 0:02:24]}  Qc4 {[%clk 0:00:39]} 23. Rxe8+ {[%clk 0:02:21]}  Rxe8 {[%clk 0:00:40]} 24. Qxa5 {[%clk 0:02:07]}  Re2 {[%clk 0:00:37]} 25. Qd8+ {[%clk 0:01:55]}  Kh7 {[%clk 0:00:37]} 26. Qxd4 {[%clk 0:01:50]}  Qxd4 {[%clk 0:00:35]} 27. Nxd4 {[%clk 0:01:51]}  Rxd2 {[%clk 0:00:35]} 28. Nf3 {[%clk 0:01:51]}  Ra2 {[%clk 0:00:34]} 29. h4 {[%clk 0:01:49]} 1-0


[Site "https://www.chess.com"]

[Event "Titled Tuesday Blitz December 27 Early 2022"]
[White "Injac, Teodora"]
[Black "Gurevich, Dmitry"]
[WhiteFideId "932400"]
[BlackFideId "2000407"]
[WhiteElo "2391"]
[BlackElo "2393"]
[Result "1/2-1/2"]
[Round "04"]
[TimeControl "180+2"]
[Date "2022.12.27"]
[WhiteClock "0:00:07"]
[BlackClock "0:00:08"]

1. Nf3 {[%clk 0:03:00]}  Nf6 {[%clk 0:02:51]} 2. c4 {[%clk 0:02:59]}  c5 {[%clk 0:02:49]} 3. Nc3 {[%clk 0:02:59]}  b6 {[%clk 0:02:50]} 4. e3 {[%clk 0:02:59]}  Bb7 {[%clk 0:02:47]} 5. d4 {[%clk 0:02:59]}  cxd4 {[%clk 0:02:46]} 6. exd4 {[%clk 0:03:00]}  e6 {[%clk 0:02:46]} 7. a3 {[%clk 0:02:49]}  d5 {[%clk 0:02:42]} 8. cxd5 {[%clk 0:02:48]}  Nxd5 {[%clk 0:02:42]} 9. Bb5+ {[%clk 0:02:49]}  Bc6 {[%clk 0:02:41]} 10. Bd3 {[%clk 0:02:42]}  Nd7 {[%clk 0:02:38]} 11. O-O {[%clk 0:02:41]}  Be7 {[%clk 0:02:37]} 12. Qe2 {[%clk 0:02:34]}  Nxc3 {[%clk 0:02:31]} 13. bxc3 {[%clk 0:02:34]}  O-O {[%clk 0:02:30]} 14. Bf4 {[%clk 0:02:26]}  Nf6 {[%clk 0:02:25]} 15. Ne5 {[%clk 0:02:24]}  Bb7 {[%clk 0:02:22]} 16. a4 {[%clk 0:02:15]}  Qd5 {[%clk 0:02:03]} 17. Nf3 {[%clk 0:02:12]}  Qh5 {[%clk 0:01:52]} 18. a5 {[%clk 0:02:02]}  Bxf3 {[%clk 0:01:49]} 19. Qxf3 {[%clk 0:02:01]}  Qxf3 {[%clk 0:01:48]} 20. gxf3 {[%clk 0:02:02]}  Rac8 {[%clk 0:01:43]} 21. axb6 {[%clk 0:01:57]}  axb6 {[%clk 0:01:43]} 22. c4 {[%clk 0:01:54]}  Rfd8 {[%clk 0:01:38]} 23. Be3 {[%clk 0:01:55]}  Ne8 {[%clk 0:01:33]} 24. Ra6 {[%clk 0:01:47]}  Nd6 {[%clk 0:01:29]} 25. Rc1 {[%clk 0:01:31]}  Rb8 {[%clk 0:01:26]} 26. d5 {[%clk 0:01:21]}  exd5 {[%clk 0:01:20]} 27. cxd5 {[%clk 0:01:22]}  b5 {[%clk 0:01:19]} 28. Rcc6 {[%clk 0:01:15]}  Nc4 {[%clk 0:00:48]} 29. Bxc4 {[%clk 0:01:04]}  bxc4 {[%clk 0:00:47]} 30. d6 {[%clk 0:01:04]}  Bf8 {[%clk 0:00:41]} 31. Bf4 {[%clk 0:00:50]}  Rbc8 {[%clk 0:00:33]} 32. Rxc8 {[%clk 0:00:39]}  Rxc8 {[%clk 0:00:32]} 33. Ra7 {[%clk 0:00:40]}  Rd8 {[%clk 0:00:27]} 34. d7 {[%clk 0:00:38]}  f6 {[%clk 0:00:24]} 35. Be3 {[%clk 0:00:34]}  c3 {[%clk 0:00:20]} 36. Rc7 {[%clk 0:00:24]}  c2 {[%clk 0:00:19]} 37. Rxc2 {[%clk 0:00:18]}  Rxd7 {[%clk 0:00:18]} 38. Rd2 {[%clk 0:00:18]}  Rxd2 {[%clk 0:00:17]} 39. Bxd2 {[%clk 0:00:18]}  Kf7 {[%clk 0:00:18]} 40. Be3 {[%clk 0:00:18]}  Ke6 {[%clk 0:00:18]} 41. Kg2 {[%clk 0:00:19]}  Kf5 {[%clk 0:00:18]} 42. Kg3 {[%clk 0:00:16]}  Bd6+ {[%clk 0:00:19]} 43. Kg2 {[%clk 0:00:17]}  Bf4 {[%clk 0:00:18]} 44. Bd4 {[%clk 0:00:14]}  g5 {[%clk 0:00:18]} 45. Be3 {[%clk 0:00:14]}  h5 {[%clk 0:00:17]} 46. Bd4 {[%clk 0:00:14]}  Be5 {[%clk 0:00:17]} 47. Be3 {[%clk 0:00:13]}  Bd6 {[%clk 0:00:15]} 48. Bd4 {[%clk 0:00:13]}  Bf4 {[%clk 0:00:14]} 49. Be3 {[%clk 0:00:13]}  Bxe3 {[%clk 0:00:14]} 50. fxe3 {[%clk 0:00:13]}  Ke5 {[%clk 0:00:13]} 51. h4 {[%clk 0:00:10]}  g4 {[%clk 0:00:08]} 52. fxg4 {[%clk 0:00:06]}  hxg4 {[%clk 0:00:08]} 53. Kg3 {[%clk 0:00:07]}  f5 {[%clk 0:00:08]} 54. h5 {[%clk 0:00:07]}  Kf6 {[%clk 0:00:07]} 55. e4 {[%clk 0:00:07]}  fxe4 {[%clk 0:00:06]} 56. Kxg4 {[%clk 0:00:07]}  Kg7 {[%clk 0:00:06]} 57. Kf4 {[%clk 0:00:07]}  Kh6 {[%clk 0:00:07]} 58. Kxe4 {[%clk 0:00:07]}  Kxh5 {[%clk 0:00:08]} 1/2-1/2


[Site "https://www.chess.com"]

[Event "Titled Tuesday Blitz December 27 Early 2022"]
[White "Itgelt, Khuyagtsogt"]
[Black "Sanal, Vahap"]
[WhiteFideId "4902912"]
[BlackFideId "6300545"]
[WhiteElo "2261"]
[BlackElo "2600"]
[Result "0-1"]
[Round "04"]
[TimeControl "180+2"]
[Date "2022.12.27"]
[WhiteClock "0:00:04"]
[BlackClock "0:01:11"]

1. Nf3 {[%clk 0:03:00]}  d6 {[%clk 0:02:50]} 2. e4 {[%clk 0:02:58]}  Nf6 {[%clk 0:02:48]} 3. Nc3 {[%clk 0:02:57]}  e5 {[%clk 0:02:48]} 4. d4 {[%clk 0:02:54]}  Nbd7 {[%clk 0:02:48]} 5. Bc4 {[%clk 0:02:51]}  Be7 {[%clk 0:02:48]} 6. O-O {[%clk 0:02:51]}  O-O {[%clk 0:02:48]} 7. Re1 {[%clk 0:02:52]}  c6 {[%clk 0:02:47]} 8. a4 {[%clk 0:02:52]}  h6 {[%clk 0:02:44]} 9. h3 {[%clk 0:02:52]}  Re8 {[%clk 0:02:42]} 10. Qe2 {[%clk 0:02:42]}  exd4 {[%clk 0:02:40]} 11. Nxd4 {[%clk 0:02:43]}  d5 {[%clk 0:02:39]} 12. Ba2 {[%clk 0:02:21]}  Bc5 {[%clk 0:02:35]} 13. Be3 {[%clk 0:01:13]}  Nxe4 {[%clk 0:02:33]} 14. Nxe4 {[%clk 0:01:12]}  Rxe4 {[%clk 0:02:34]} 15. c3 {[%clk 0:01:13]}  Bxd4 {[%clk 0:02:31]} 16. cxd4 {[%clk 0:01:13]}  Nf6 {[%clk 0:02:31]} 17. Qf3 {[%clk 0:01:10]}  Re8 {[%clk 0:02:29]} 18. Bb1 {[%clk 0:01:08]}  Ne4 {[%clk 0:02:29]} 19. Bd3 {[%clk 0:00:58]}  Bd7 {[%clk 0:02:23]} 20. a5 {[%clk 0:00:57]}  a6 {[%clk 0:02:23]} 21. Bf4 {[%clk 0:00:55]}  Qf6 {[%clk 0:02:22]} 22. Bxe4 {[%clk 0:00:47]}  dxe4 {[%clk 0:02:22]} 23. Rxe4 {[%clk 0:00:48]}  Rxe4 {[%clk 0:02:22]} 24. Qxe4 {[%clk 0:00:48]}  Re8 {[%clk 0:02:23]} 25. Be5 {[%clk 0:00:48]}  Qe6 {[%clk 0:02:24]} 26. Qf3 {[%clk 0:00:41]}  f6 {[%clk 0:02:21]} 27. Bf4 {[%clk 0:00:41]}  Qf7 {[%clk 0:02:19]} 28. Qg3 {[%clk 0:00:34]}  Kh7 {[%clk 0:02:17]} 29. Qd3+ {[%clk 0:00:34]}  Kh8 {[%clk 0:02:18]} 30. Qd2 {[%clk 0:00:32]}  Be6 {[%clk 0:02:14]} 31. Re1 {[%clk 0:00:32]}  Bd5 {[%clk 0:02:14]} 32. Rxe8+ {[%clk 0:00:32]}  Qxe8 {[%clk 0:02:15]} 33. Kh2 {[%clk 0:00:28]}  Qe4 {[%clk 0:02:14]} 34. f3 {[%clk 0:00:28]}  Qb1 {[%clk 0:02:14]} 35. Bg3 {[%clk 0:00:24]}  Qf5 {[%clk 0:02:09]} 36. h4 {[%clk 0:00:24]}  Kh7 {[%clk 0:02:07]} 37. Kg1 {[%clk 0:00:19]}  Qg6 {[%clk 0:02:06]} 38. Kh2 {[%clk 0:00:18]}  Qb1 {[%clk 0:02:06]} 39. Bf2 {[%clk 0:00:17]}  Kg6 {[%clk 0:02:00]} 40. Bg3 {[%clk 0:00:17]}  Qf5 {[%clk 0:01:59]} 41. Bf2 {[%clk 0:00:17]}  h5 {[%clk 0:01:59]} 42. Bg3 {[%clk 0:00:18]}  Kf7 {[%clk 0:01:59]} 43. Qf4 {[%clk 0:00:18]}  Qc2 {[%clk 0:01:56]} 44. Qc7+ {[%clk 0:00:15]}  Kg6 {[%clk 0:01:56]} 45. Kg1 {[%clk 0:00:04]}  Qxb2 {[%clk 0:01:52]} 46. Qb6 {[%clk 0:00:04]}  Qc1+ {[%clk 0:01:44]} 47. Kh2 {[%clk 0:00:04]}  Qc2 {[%clk 0:01:45]} 48. Qc5 {[%clk 0:00:04]}  Qd2 {[%clk 0:01:41]} 49. Kg1 {[%clk 0:00:04]}  Qd1+ {[%clk 0:01:38]} 50. Kh2 {[%clk 0:00:04]}  Qe2 {[%clk 0:01:38]} 51. Kh3 {[%clk 0:00:04]}  Kh7 {[%clk 0:01:23]} 52. Qb6 {[%clk 0:00:04]}  Qf1 {[%clk 0:01:20]} 53. Kh2 {[%clk 0:00:03]}  Qe2 {[%clk 0:01:20]} 54. Kh3 {[%clk 0:00:03]}  Qe7 {[%clk 0:01:20]} 55. Kh2 {[%clk 0:00:03]}  Kg6 {[%clk 0:01:13]} 56. Qc5 {[%clk 0:00:02]}  Qe2 {[%clk 0:01:13]} 57. Kh3 {[%clk 0:00:03]}  Qb2 {[%clk 0:01:10]} 58. Qb6 {[%clk 0:00:03]}  Qxb6 {[%clk 0:01:10]} 59. axb6 {[%clk 0:00:03]}  a5 {[%clk 0:01:10]} 60. Bd6 {[%clk 0:00:04]}  a4 {[%clk 0:01:11]} 61. Kg3 {[%clk 0:00:05]}  Kf5 {[%clk 0:01:12]} 62. Kf2 {[%clk 0:00:05]}  Ke6 {[%clk 0:01:12]} 63. Bf8 {[%clk 0:00:04]}  g5 {[%clk 0:01:12]} 64. hxg5 {[%clk 0:00:04]}  fxg5 {[%clk 0:01:13]} 65. g3 {[%clk 0:00:04]}  Kf5 {[%clk 0:01:11]} 66. g4+ {[%clk 0:00:03]}  hxg4 {[%clk 0:01:11]} 67. fxg4+ {[%clk 0:00:04]}  Kxg4 {[%clk 0:01:12]} 68. Ke3 {[%clk 0:00:03]}  Kh3 {[%clk 0:01:12]} 69. Kf2 {[%clk 0:00:02]}  g4 {[%clk 0:01:13]} 70. Kg1 {[%clk 0:00:03]}  g3 {[%clk 0:01:13]} 71. Bd6 {[%clk 0:00:03]}  g2 {[%clk 0:01:14]} 72. Bc5 {[%clk 0:00:04]}  Kg4 {[%clk 0:01:13]} 73. Bd6 {[%clk 0:00:05]}  Kf5 {[%clk 0:01:12]} 74. Bc5 {[%clk 0:00:04]}  Kf4 {[%clk 0:01:08]} 75. Kf2 {[%clk 0:00:05]}  Bf3 {[%clk 0:01:07]} 76. Kg1 {[%clk 0:00:04]}  Ke4 {[%clk 0:01:07]} 77. Kf2 {[%clk 0:00:04]}  Kd5 {[%clk 0:01:08]} 78. Kg1 {[%clk 0:00:04]}  Be4 {[%clk 0:01:09]} 79. Kf2 {[%clk 0:00:04]}  Kc4 {[%clk 0:01:09]} 80. Kg1 {[%clk 0:00:04]}  Bd5 {[%clk 0:01:10]} 81. Kf2 {[%clk 0:00:04]}  Kb3 {[%clk 0:01:11]} 0-1


[Site "https://www.chess.com"]